bitfinex-derivatives/quotes_BTCF0:USTF0_20240903
["timestamp","ask_amount","ask_price","bid_price","bid_amount"]
[1725353120005,0.189985,58839.0,58838.0,0.05326379]
[1725353120601,0.069985,58839.0,58838.0,0.05326379]
[1725353121413,0.139985,58839.0,58838.0,0.05326379]
[1725353122303,0.139985,58839.0,58838.0,0.0024]
[1725353124110,0.002,58839.0,58838.0,0.070386]
[1725353124307,0.002,58839.0,58838.0,0.12124979]
[1725353124509,0.102,58839.0,58838.0,0.070386]
[1725353124707,0.002,58839.0,58838.0,0.36124979]
[1725353124904,0.002,58839.0,58838.0,0.820266]
[1725353125301,0.00025493,58844.0,58838.0,0.82014818]
[1725353125506,0.00025493,58844.0,58843.0,0.30838]
[1725353125906,0.00025493,58844.0,58843.0,1.41822]
[1725353126110,0.00025493,58844.0,58843.0,1.50942]
[1725353126309,0.00025493,58844.0,58843.0,1.87022]
[1725353126498,0.00025493,58844.0,58843.0,1.27022]
[1725353126903,0.00025493,58844.0,58843.0,1.87022]
[1725353127613,0.00025493,58844.0,58843.0,1.27022]
[1725353128023,0.00025493,58844.0,58843.0,1.27122]
[1725353128209,0.00025493,58844.0,58843.0,1.27222]
[1725353129306,0.00025493,58844.0,58843.0,1.87222]
[1725353129904,0.067967,58855.0,58843.0,1.80424]
[1725353130218,0.067967,58855.0,58854.0,0.2404]
[1725353130705,0.067967,58855.0,58854.0,0.0004]
[1725353130906,0.427967,58855.0,58854.0,0.0004]
[1725353131305,0.067972,58850.0,58849.0,0.00025493]
[1725353131513,0.788772,58850.0,58849.0,0.00025493]
[1725353131715,0.789172,58850.0,58849.0,0.00025493]
[1725353132013,0.857144,58850.0,58849.0,0.00025493]
[1725353133318,0.789172,58850.0,58849.0,0.00125493]
[1725353133621,0.857144,58850.0,58849.0,0.00125493]
[1725353134515,0.857144,58850.0,58849.0,0.00225493]
[1725353134928,0.067987,58837.0,58836.0,0.05080333]
[1725353135111,0.06799,58835.0,58832.0,0.05080333]
[1725353135313,0.0004,58833.0,58830.0,0.0957]
[1725353135514,0.0004,58833.0,58832.0,0.05080554]
[1725353136021,0.06799,58835.0,58832.0,0.05080554]
[1725353136208,0.06799,58835.0,58834.0,0.0004]
[1725353137021,0.06899,58835.0,58834.0,0.0004]
[1725353137414,0.06899,58835.0,58834.0,0.0014]
[1725353138412,0.06899,58835.0,58834.0,0.05220554]
[1725353138612,0.06799,58835.0,58834.0,0.05220554]
[1725353139023,0.06799,58835.0,58834.0,0.0014]
[1725353139514,0.06799,58835.0,58834.0,0.0024]
[1725353140426,0.06799,58835.0,58834.0,0.07026818]
[1725353141321,0.17799,58835.0,58834.0,0.0024]
[1725353141918,0.17799,58835.0,58834.0,0.07025596]
[1725353142227,0.17799,58835.0,58834.0,0.0024]
[1725353142725,0.111,58835.0,58834.0,0.310391]
[1725353142912,0.111,58835.0,58834.0,0.90517581]
[1725353142913,0.001,58835.0,58834.0,0.90517581]
[1725353143116,0.001,58835.0,58834.0,1.03469729]
[1725353143317,0.001,58835.0,58834.0,0.94983248]
[1725353146026,0.001,58835.0,58834.0,0.52473115]
[1725353146332,0.001,58835.0,58834.0,0.43991248]
[1725353146525,0.001,58835.0,58834.0,0.94983248]
[1725353147023,0.001,58835.0,58834.0,0.43991248]
[1725353149329,0.001,58835.0,58834.0,0.070391]
[1725353152133,0.001,58835.0,58834.0,0.310391]
[1725353160432,0.001,58835.0,58834.0,0.39521647]
[1725353160628,0.3618,58835.0,58834.0,0.0024]
[1725353160830,0.53979,58835.0,58834.0,0.0024]
[1725353161132,0.53979,58835.0,58834.0,0.07034912]
[1725353161438,0.53979,58835.0,58834.0,0.0024]
[1725353161627,0.60778,58835.0,58834.0,0.0024]
[1725353161935,0.13599,58830.0,58829.0,9.4e-07]
[1725353162130,0.4712,58830.0,58827.0,0.00025493]
[1725353162326,0.068398,58828.0,58827.0,0.00025493]
[1725353162526,0.187998,58828.0,58827.0,0.00025493]
[1725353163128,0.185998,58828.0,58827.0,0.00025493]
[1725353163329,1.295958,58828.0,58827.0,0.00025493]
[1725353163721,1.295958,58828.0,58827.0,0.00125493]
[1725353163722,1.364956,58828.0,58827.0,0.00125493]
[1725353164731,1.364956,58828.0,58814.0,0.004]
[1725353164732,0.068012,58816.0,58815.0,0.0509736]
[1725353164935,0.7208,58816.0,58812.0,0.05089522]
[1725353165125,0.7208,58816.0,58811.0,0.05089522]
[1725353165126,0.2404,58813.0,58811.0,0.05089522]
[1725353165325,0.0004,58812.0,58811.0,0.05089522]
[1725353165529,0.11,58812.0,58807.0,0.05089807]
[1725353165742,0.0004,58808.0,58807.0,0.05089807]
[1725353166033,0.0004,58808.0,58806.0,0.05089807]
[1725353166234,0.3608,58809.0,58806.0,0.05089807]
[1725353166235,0.3602,58809.0,58806.0,0.05089807]
[1725353166430,0.0004,58807.0,58805.0,0.05089807]
[1725353166730,0.0004,58807.0,58804.0,0.00305493]
[1725353166731,0.5996,58809.0,58804.0,0.00305493]
[1725353166934,0.004,58808.0,58807.0,0.001]
[1725353167431,0.068024,58805.0,58804.0,0.00305493]
[1725353167631,0.538824,58805.0,58804.0,0.00305493]
[1725353167826,1.648984,58805.0,58804.0,0.00305493]
[1725353168039,1.888984,58805.0,58804.0,0.00385493]
[1725353168533,1.887984,58805.0,58804.0,0.00385493]
[1725353168740,1.886984,58805.0,58804.0,0.00385493]
[1725353169633,1.900984,58805.0,58804.0,0.00485493]
[1725353169837,1.915384,58805.0,58804.0,0.00585493]
[1725353172532,1.983408,58805.0,58804.0,0.00585493]
[1725353172834,2.033408,58805.0,58804.0,0.00585493]
[1725353173033,0.068042,58790.0,58789.0,0.004]
[1725353173232,0.068042,58790.0,58780.0,0.068053]
[1725353173233,0.6008,58790.0,58780.0,0.068053]
[1725353173436,0.24,58783.0,58780.0,0.068053]
[1725353173632,0.24,58783.0,58775.0,0.753439]
[1725353173831,0.068055,58779.0,58775.0,0.00088]
[1725353174039,0.068055,58779.0,58770.0,0.3608]
[1725353174040,0.6008,58776.0,58771.0,0.00025515]
[1725353174539,0.6008,58776.0,58773.0,0.068061]
[1725353174737,0.6008,58776.0,58774.0,0.06806]
[1725353174941,0.3608,58776.0,58771.0,0.24025515]
[1725353175243,0.36639504,58783.0,58771.0,0.24025515]
[1725353175244,0.00025515,58783.0,58782.0,0.068051]
[1725353176041,0.00025515,58783.0,58777.0,0.068057]
[1725353176435,0.308056,58778.0,58775.0,0.00092]
[1725353176745,0.308056,58778.0,58773.0,0.068061]
[1725353177242,0.368056,58778.0,58773.0,0.068061]
[1725353177438,0.0008,58774.0,58773.0,0.068061]
[1725353177646,0.308056,58778.0,58773.0,0.068061]
[1725353177839,0.438056,58778.0,58774.0,0.06806]
[1725353178831,0.24,58775.0,58773.0,0.0008]
[1725353179032,0.6008,58775.0,58773.0,0.0008]
[1725353179340,0.3608,58775.0,58773.0,0.068861]
[1725353180234,0.6148,58775.0,58773.0,0.068861]
[1725353180643,0.696859,58775.0,58773.0,0.0008]
[1725353181438,0.456859,58775.0,58773.0,0.0008]
[1725353181646,0.40577445,58775.0,58773.0,0.0008]
[1725353182441,0.24,58774.0,58773.0,0.0008]
[1725353182749,0.43806,58774.0,58773.0,0.0008]
[1725353183835,0.45206,58774.0,58773.0,0.0008]
[1725353184032,0.9625,58774.0,58773.0,0.0008]
[1725353184237,0.45206,58774.0,58773.0,0.0008]
[1725353185041,0.9625,58774.0,58773.0,0.0008]
[1725353185239,0.45206,58774.0,58773.0,0.0008]
[1725353185442,0.46606,58774.0,58773.0,0.0008]
[1725353185638,0.22606,58774.0,58773.0,0.0008]
[1725353186145,0.46606,58774.0,58773.0,0.0008]
[1725353186542,1.5765,58774.0,58773.0,0.0008]
[1725353186943,0.46606,58774.0,58773.0,0.0008]
[1725353188336,0.82686,58774.0,58773.0,0.0008]
[1725353188751,1.3373,58774.0,58773.0,0.0008]
[1725353189050,0.82686,58774.0,58773.0,0.0008]
[1725353189851,1.9373,58774.0,58773.0,0.0008]
[1725353190039,0.82686,58774.0,58773.0,0.0008]
[1725353191151,0.5188,58774.0,58773.0,0.068861]
[1725353191541,0.5188,58774.0,58773.0,0.0008]
[1725353191542,0.82686,58774.0,58773.0,0.0008]
[1725353192354,0.5188,58774.0,58773.0,0.0008]
[1725353192548,0.5188,58774.0,58773.0,0.068861]
[1725353193546,0.5188,58774.0,58773.0,0.28335685]
[1725353193949,0.028,58774.0,58773.0,0.19853138]
[1725353194448,0.00025515,58783.0,58782.0,0.068051]
[1725353194651,0.01025515,58783.0,58782.0,0.52268449]
[1725353194855,0.01025515,58783.0,58782.0,0.19810492]
[1725353195046,0.01025515,58783.0,58782.0,0.43810492]
[1725353195239,0.00025515,58783.0,58782.0,0.79890492]
[1725353195441,0.00025515,58783.0,58782.0,0.95669826]
[1725353195851,0.01425515,58783.0,58782.0,0.95669826]
[1725353196053,0.02825515,58783.0,58782.0,0.95669826]
[1725353196350,0.02825515,58783.0,58782.0,0.71669826]
[1725353196652,0.00025515,58783.0,58782.0,0.71669826]
[1725353196854,0.02825515,58783.0,58782.0,0.71669826]
[1725353197548,0.24,58787.0,58783.0,0.068049]
[1725353197745,0.24,58787.0,58786.0,0.1020391]
[1725353197943,0.24,58787.0,58786.0,0.23169302]
[1725353198353,0.004,58798.0,58796.0,0.068034]
[1725353198552,0.3608,58800.0,58798.0,0.068032]
[1725353198855,0.3608,58800.0,58799.0,0.12965392]
[1725353199157,0.3608,58800.0,58799.0,0.28118117]
[1725353199358,0.3608,58800.0,58799.0,0.33731395]
[1725353199758,0.00025515,58803.0,58802.0,0.068028]
[1725353200059,0.00025515,58803.0,58802.0,0.59581878]
[1725353200355,0.3608,58811.0,58810.0,0.068019]
[1725353200554,0.3608,58811.0,58810.0,0.308419]
[1725353200752,0.3608,58811.0,58810.0,0.39305835]
[1725353200952,0.3608,58811.0,58810.0,0.52264498]
[1725353201350,0.3608,58811.0,58810.0,0.308419]
[1725353202749,0.3608,58811.0,58810.0,0.309419]
[1725353203049,0.3608,58811.0,58810.0,0.310419]
[1725353204255,0.00025515,58816.0,58815.0,0.068013]
[1725353204557,0.00025515,58816.0,58815.0,0.35907336]
[1725353205558,0.11025515,58816.0,58815.0,0.309413]
[1725353206358,0.11025515,58816.0,58815.0,0.310413]
[1725353207958,0.00025515,58816.0,58815.0,0.310413]
[1725353208153,0.3608,58826.0,58825.0,0.068001]
[1725353208353,0.3654,58833.0,58825.0,0.068001]
[1725353208354,0.3608,58833.0,58832.0,0.067993]
[1725353208652,0.3608,58833.0,58832.0,0.307993]
[1725353209460,0.00016575,58838.0,58837.0,0.067987]
[1725353209762,0.00016575,58838.0,58837.0,0.308387]
[1725353210569,0.3608,58846.0,58845.0,0.067978]
[1725353210759,0.3608,58846.0,58845.0,0.308378]
[1725353210954,0.004,58858.0,58857.0,0.067964]
[1725353211161,0.067954,58866.0,58857.0,0.669164]
[1725353211361,0.067958,58863.0,58857.0,0.6012]
[1725353211556,0.067959,58862.0,58857.0,0.6012]
[1725353211765,0.177959,58862.0,58857.0,0.6012]
[1725353212069,0.177959,58862.0,58858.0,0.29]
[1725353213070,0.178959,58862.0,58858.0,0.29]
[1725353213454,0.177959,58862.0,58858.0,0.29]
[1725353213661,0.111,58862.0,58858.0,0.291]
[1725353213968,0.067961,58860.0,58858.0,0.001]
[1725353214269,0.077961,58860.0,58858.0,0.001]
[1725353214672,0.002,58862.0,58858.0,0.002]
[1725353214869,0.002,58862.0,58861.0,0.2904]
[1725353215868,0.428755,58865.0,58861.0,0.0004]
[1725353216064,0.438755,58865.0,58864.0,0.0004]
[1725353218475,0.439755,58865.0,58864.0,0.0004]
[1725353219166,0.439755,58865.0,58864.0,0.0014]
[1725353219568,0.440755,58865.0,58864.0,0.0024]
[1725353220279,1.61835,58865.0,58864.0,0.0024]
[1725353220979,0.50871,58865.0,58864.0,0.0024]
[1725353223371,0.54871,58865.0,58864.0,0.0024]
[1725353224075,0.83871,58865.0,58864.0,0.0024]
[1725353224276,0.79871,58865.0,58864.0,0.0024]
[1725353224467,0.50871,58865.0,58864.0,0.0024]
[1725353225778,0.440755,58865.0,58864.0,0.0024]
[1725353229076,0.3812446,58865.0,58864.0,0.0024]
[1725353229279,0.4012446,58865.0,58864.0,0.0024]
[1725353231185,0.350233,58865.0,58864.0,0.0024]
[1725353234484,0.02,58865.0,58864.0,0.0024]
[1725353234678,0.6008,58876.0,58865.0,0.067954]
[1725353234679,0.067948,58871.0,58865.0,0.067954]
[1725353234880,0.227948,58871.0,58870.0,0.0004]
[1725353236280,0.227948,58871.0,58870.0,0.0014]
[1725353236281,0.2331545,58871.0,58870.0,0.0014]
[1725353236682,0.5939545,58871.0,58870.0,0.05311721]
[1725353236892,0.6619035,58871.0,58870.0,0.0024]
[1725353237286,0.5939545,58871.0,58870.0,0.0024]
[1725353239382,0.5939545,58871.0,58870.0,0.07020934]
[1725353239579,0.5939545,58871.0,58870.0,0.0024]
[1725353239783,0.6619025,58871.0,58870.0,0.0024]
[1725353240088,0.5939545,58871.0,58870.0,0.0024]
[1725353240593,0.6619025,58871.0,58870.0,0.0024]
[1725353241688,0.5939545,58871.0,58870.0,0.0024]
[1725353241980,0.6619025,58871.0,58870.0,0.0024]
[1725353242490,1.13579647,58871.0,58870.0,0.0024]
[1725353243193,1.06784847,58871.0,58870.0,0.0024]
[1725353244297,0.0052065,58871.0,58870.0,0.2324]
[1725353244477,0.3608,58877.0,58870.0,0.300349]
[1725353244677,0.05214541,58876.0,58873.0,0.23]
[1725353244893,0.05214541,58875.0,58873.0,0.23]
[1725353245094,0.22,58875.0,58873.0,0.23]
[1725353245593,0.0521442,58874.0,58873.0,0.23]
[1725353245787,0.0521442,58874.0,58873.0,0.231]
[1725353247089,0.43545952,58877.0,58873.0,0.231]
[1725353247291,0.67405951,58877.0,58876.0,0.0004]
[1725353247783,0.67405951,58877.0,58876.0,0.05130749]
[1725353247987,0.67405951,58877.0,58876.0,0.0004]
[1725353248587,0.60611851,58877.0,58876.0,0.0513025]
[1725353248894,0.24531851,58877.0,58876.0,0.0004]
[1725353249590,0.24531851,58877.0,58876.0,0.05229339]
[1725353249791,0.24531851,58877.0,58876.0,0.05329339]
[1725353250584,0.24531851,58877.0,58876.0,0.0024]
[1725353255191,0.23838608,58877.0,58873.0,0.38803051]
[1725353255391,0.0004,58874.0,58873.0,0.428746]
[1725353255595,0.23346757,58874.0,58873.0,0.428746]
[1725353256196,0.23346757,58874.0,58873.0,0.658746]
[1725353256406,0.11346757,58874.0,58873.0,0.659746]
[1725353256695,0.33178578,58874.0,58873.0,0.660746]
[1725353257099,0.33178578,58874.0,58873.0,0.659746]
[1725353257402,0.11346757,58874.0,58873.0,0.659746]
[1725353257603,0.11346757,58874.0,58873.0,0.660746]
[1725353258103,0.33175844,58874.0,58873.0,0.660746]
[1725353258302,0.27961734,58874.0,58873.0,0.660746]
[1725353258501,0.33175686,58874.0,58873.0,0.660746]
[1725353258689,0.11346599,58874.0,58873.0,0.660746]
[1725353260504,0.11346599,58874.0,58873.0,1.170306]
[1725353261199,0.11346599,58874.0,58873.0,1.05327541]
[1725353261703,0.11446599,58874.0,58873.0,1.05327541]
[1725353262203,0.0014,58874.0,58873.0,1.05327541]
[1725353263103,0.0024,58874.0,58873.0,1.05327541]
[1725353263295,0.0014,58874.0,58873.0,1.05227541]
[1725353263494,0.0014,58874.0,58873.0,1.05327541]
[1725353263495,0.0024,58874.0,58873.0,1.05327541]
[1725353263891,0.0024,58874.0,58873.0,1.65327541]
[1725353264096,0.3608,58882.0,58881.0,0.067937]
[1725353264296,0.16787236,58892.0,58881.0,0.067937]
[1725353264297,0.53267236,58894.0,58881.0,1.10068]
[1725353264593,0.3808,58894.0,58893.0,0.2304]
[1725353264797,0.3808,58894.0,58882.0,0.00025492]
[1725353264798,0.067932,58885.0,58882.0,0.00025492]
[1725353264992,0.067934,58883.0,58882.0,0.00025492]
[1725353265196,0.0482,58884.0,58883.0,0.067934]
[1725353265411,0.0482,58884.0,58883.0,0.068334]
[1725353266094,0.3608,58889.0,58883.0,0.068334]
[1725353266296,0.0485,58888.0,58883.0,0.0004]
[1725353266493,0.00152,58889.0,58888.0,0.23]
[1725353266697,0.0481,58893.0,58888.0,0.2304]
[1725353266898,0.0481,58893.0,58892.0,0.2304]
[1725353267105,0.0481,58893.0,58892.0,0.23]
[1725353267799,0.04990001,58894.0,58892.0,0.23]
[1725353268002,0.0485,58894.0,58893.0,0.0004]
[1725353268505,0.067917,58898.0,58893.0,0.0004]
[1725353268701,0.067917,58898.0,58897.0,0.0004]
[1725353269694,0.3608,58900.0,58898.0,0.067916]
[1725353269905,0.3608,58900.0,58899.0,0.2304]
[1725353270102,0.47382563,58900.0,58899.0,0.16644001]
[1725353270698,0.47382563,58900.0,58899.0,0.14959601]
[1725353270905,0.47382563,58900.0,58899.0,0.21751201]
[1725353271108,0.47382563,58900.0,58899.0,0.21851201]
[1725353271410,0.47382563,58900.0,58899.0,0.21951201]
[1725353272606,0.47382345,58900.0,58899.0,0.21951201]
[1725353275115,0.47382345,58900.0,58891.0,0.00088]
[1725353275116,0.68382345,58900.0,58891.0,0.00088]
[1725353275412,0.659124,58892.0,58888.0,0.3241]
[1725353275602,0.0004,58889.0,58888.0,0.3241]
[1725353275802,0.46342345,58889.0,58888.0,0.28489691]
[1725353276197,0.067932,58885.0,58882.0,0.00121492]
[1725353276401,0.0004,58883.0,58882.0,0.00025492]
[1725353276596,0.30310942,58883.0,58882.0,0.00025492]
[1725353276903,0.23342345,58883.0,58882.0,0.00025492]
[1725353277107,0.1204,58883.0,58882.0,0.00025492]
[1725353277510,0.0004,58883.0,58882.0,0.00125492]
[1725353277708,0.36224,58892.0,58882.0,1.11073492]
[1725353277910,0.05213081,58891.0,58882.0,0.14275492]
[1725353278099,0.3608,58892.0,58890.0,0.067926]
[1725353278307,0.3608,58892.0,58891.0,0.23]
[1725353278511,0.4708,58892.0,58888.0,0.23]
[1725353278916,0.4708,58892.0,58884.0,0.23]
[1725353279305,0.4708,58892.0,58888.0,0.067928]
[1725353280302,0.4738,58892.0,58887.0,0.23]
[1725353280500,0.3638,58892.0,58891.0,0.067925]
[1725353280705,0.003,58892.0,58891.0,0.297925]
[1725353281112,0.003,58892.0,58891.0,1.407325]
[1725353281510,0.002,58892.0,58891.0,0.297925]
[1725353281820,0.003,58892.0,58891.0,0.297925]
[1725353282403,0.003,58892.0,58891.0,0.067925]
[1725353282607,0.067925,58891.0,58887.0,0.068929]
[1725353282918,0.187925,58891.0,58887.0,0.068929]
[1725353283310,0.002,58892.0,58888.0,0.001]
[1725353283521,0.002,58892.0,58891.0,0.0004]
[1725353284016,0.0469,58893.0,58891.0,0.0004]
[1725353284209,0.114823,58893.0,58892.0,0.0004]
[1725353284611,0.28694754,58893.0,58892.0,0.0004]
[1725353285009,0.234823,58893.0,58892.0,0.0004]
[1725353286419,0.235823,58893.0,58892.0,0.0004]
[1725353287116,0.236823,58893.0,58892.0,0.0024]
[1725353288720,0.28895149,58893.0,58892.0,0.0024]
[1725353290012,0.28895149,58893.0,58882.0,0.00025492]
[1725353290013,0.067934,58883.0,58882.0,0.00025492]
[1725353290218,0.789134,58883.0,58882.0,0.00025492]
[1725353290408,0.559134,58883.0,58882.0,0.00025492]
[1725353291014,0.198334,58883.0,58882.0,0.00025492]
[1725353291213,0.198334,58883.0,58882.0,0.00225492]
[1725353291214,0.199334,58883.0,58882.0,0.00225492]
[1725353291516,0.200334,58883.0,58882.0,0.00225492]
[1725353292317,0.47022233,58883.0,58882.0,0.00225492]
[1725353293017,0.53113881,58883.0,58882.0,0.00225492]
[1725353293212,0.47022233,58883.0,58882.0,0.00225492]
[1725353294123,0.31338304,58883.0,58882.0,0.00225492]
[1725353294318,0.25246656,58883.0,58882.0,0.00225492]
[1725353294712,0.25246663,58883.0,58882.0,0.00225492]
[1725353297421,0.30216663,58883.0,58882.0,0.00225492]
[1725353297612,0.36308311,58883.0,58882.0,0.00225492]
[1725353299514,0.36308362,58883.0,58882.0,0.00225492]
[1725353300221,0.1821,58883.0,58882.0,0.00225492]
[1725353301425,0.0024,58883.0,58882.0,0.43098992]
[1725353302316,0.0024,58883.0,58882.0,1.17046992]
[1725353303425,0.0024,58883.0,58882.0,1.77046992]
[1725353305027,0.0034,58883.0,58882.0,1.40966992]
[1725353305214,0.0034,58883.0,58882.0,1.77046992]
[1725353305415,0.0034,58883.0,58882.0,1.76946992]
[1725353305416,0.0024,58883.0,58882.0,1.76946992]
[1725353305619,0.0044,58883.0,58882.0,1.77046992]
[1725353305824,0.0044,58883.0,58882.0,1.17046992]
[1725353306022,0.0044,58883.0,58882.0,1.77046992]
[1725353306522,0.0044,58883.0,58882.0,1.17046992]
[1725353306818,0.0044,58883.0,58882.0,0.43098992]
[1725353307320,0.11744271,58883.0,58882.0,0.43098992]
[1725353307921,0.11744271,58883.0,58882.0,0.66098992]
[1725353309027,0.11744271,58883.0,58882.0,0.30018992]
[1725353309229,0.18713922,58883.0,58882.0,0.30018992]
[1725353309426,0.18713922,58883.0,58882.0,0.27017093]
[1725353310726,0.23443922,58883.0,58882.0,0.27017093]
[1725353311130,0.18713922,58883.0,58882.0,0.27017093]
[1725353311328,0.11744271,58883.0,58882.0,0.27017093]
[1725353311522,0.18713922,58883.0,58882.0,0.27017093]
[1725353311923,0.11744271,58883.0,58882.0,0.27017093]
[1725353313924,0.11744271,58883.0,58882.0,0.232]
[1725353314120,0.11744271,58883.0,58882.0,0.002]
[1725353314121,0.24537671,58883.0,58882.0,0.002]
[1725353315236,0.132334,58883.0,58882.0,0.002]
[1725353316131,0.132334,58883.0,58882.0,0.232]
[1725353317643,0.132334,58883.0,58882.0,0.299935]
[1725353317644,0.0044,58883.0,58882.0,0.299935]
[1725353318026,0.1244,58883.0,58882.0,0.002]
[1725353318629,0.192334,58883.0,58882.0,0.002]
[1725353320135,0.19756308,58883.0,58882.0,0.002]
[1725353326139,0.192334,58883.0,58882.0,0.002]
[1725353326532,0.192334,58883.0,58882.0,0.069935]
[1725353328238,0.1244,58883.0,58882.0,0.069935]
[1725353329436,0.17653232,58883.0,58882.0,0.069935]
[1725353330339,0.17653221,58883.0,58882.0,0.069935]
[1725353333443,0.17653209,58883.0,58882.0,0.069935]
[1725353334246,0.39497091,58883.0,58882.0,0.069935]
[1725353335951,0.2374483,58883.0,58882.0,0.069935]
[1725353336139,0.17653209,58883.0,58882.0,0.069935]
[1725353337457,0.1244,58883.0,58882.0,0.069935]
[1725353338548,0.0044,58883.0,58882.0,0.069935]
[1725353339146,0.0044,58883.0,58882.0,0.48162839]
[1725353339350,0.0044,58883.0,58882.0,0.43592566]
[1725353341249,0.1044,58883.0,58882.0,0.069935]
[1725353341559,0.402334,58883.0,58882.0,0.002]
[1725353343252,0.412334,58883.0,58882.0,0.002]
[1725353343755,0.402334,58883.0,58882.0,0.002]
[1725353343950,0.412334,58883.0,58882.0,0.002]
[1725353344155,0.41777629,58883.0,58882.0,0.002]
[1725353344554,0.53083761,58883.0,58882.0,0.002]
[1725353346247,0.52083761,58883.0,58882.0,0.002]
[1725353347553,0.29083761,58883.0,58882.0,0.002]
[1725353347752,0.29083761,58883.0,58882.0,0.232]
[1725353348559,0.29083761,58883.0,58882.0,0.002]
[1725353349151,0.21746132,58883.0,58882.0,0.232]
[1725353349347,0.21746132,58883.0,58882.0,0.299935]
[1725353349348,0.05653822,58883.0,58882.0,0.299935]
[1725353350663,0.05653822,58883.0,58882.0,1.41789459]
[1725353350963,0.05653822,58883.0,58882.0,1.55899459]
[1725353350964,0.05652501,58883.0,58882.0,1.55899459]
[1725353352455,0.0044,58883.0,58882.0,1.55899459]
[1725353355452,0.0044,58883.0,58882.0,0.95899459]
[1725353356165,0.0044,58883.0,58882.0,1.17111459]
[1725353357561,0.0044,58883.0,58882.0,1.23904959]
[1725353359166,0.0044,58883.0,58882.0,1.74852959]
[1725353359363,0.0044,58883.0,58882.0,2.34852959]
[1725353359967,0.05652327,58883.0,58882.0,1.83904959]
[1725353360163,0.05652327,58883.0,58882.0,2.34852959]
[1725353360559,0.05652341,58883.0,58882.0,2.34852959]
[1725353363169,0.06090563,58901.0,58882.0,1.17111459]
[1725353363467,0.004,58899.0,58893.0,0.3612]
[1725353363667,0.06090563,58901.0,58893.0,0.3612]
[1725353363668,0.1017186,58894.0,58893.0,0.3612]
[1725353364873,0.1037186,58894.0,58893.0,0.430123]
[1725353365869,0.1037186,58894.0,58893.0,0.431123]
[1725353367370,0.0541186,58894.0,58893.0,0.431123]
[1725353367675,0.002,58894.0,58893.0,0.431123]
[1725353368968,0.002,58894.0,58893.0,0.43634533]
[1725353371881,0.002,58894.0,58893.0,0.07554533]
[1725353372081,0.002,58894.0,58893.0,0.43634533]
[1725353372583,0.399922,58894.0,58893.0,0.3632]
[1725353372772,0.399922,58894.0,58885.0,0.067931]
[1725353372773,0.067931,58887.0,58885.0,0.067931]
[1725353373078,0.067931,58887.0,58883.0,0.01296286]
[1725353373079,0.0971,58886.0,58883.0,0.01296286]
[1725353373281,0.0971,58886.0,58885.0,0.23]
[1725353373282,0.2071,58886.0,58885.0,0.23]
[1725353374676,0.2071,58886.0,58885.0,0.231]
[1725353374886,0.0971,58886.0,58885.0,0.298932]
[1725353375089,0.0971,58886.0,58885.0,0.35077299]
[1725353375280,0.0971,58886.0,58885.0,0.299932]
[1725353375476,0.0971,58886.0,58885.0,0.34977299]
[1725353375683,0.0981,58886.0,58885.0,0.35077299]
[1725353376582,0.0981,58886.0,58885.0,0.299932]
[1725353376784,0.0981,58886.0,58885.0,0.36780847]
[1725353377184,0.0981,58886.0,58885.0,0.299932]
[1725353379986,0.0483,58886.0,58885.0,0.299932]
[1725353380376,0.0481,58893.0,58892.0,0.067924]
[1725353380582,0.0481,58893.0,58892.0,0.659124]
[1725353381881,0.0481,58893.0,58892.0,0.660124]
[1725353382480,0.0491,58893.0,58892.0,0.661124]
[1725353383579,0.0491,58893.0,58892.0,0.66643285]
[1725353388989,0.1691,58893.0,58892.0,0.3632]
[1725353389178,0.1691,58893.0,58888.0,0.067928]
[1725353389179,1.92142296,58893.0,58888.0,0.067928]
[1725353389384,0.067926,58891.0,58888.0,0.067928]
[1725353389584,0.187926,58891.0,58889.0,0.05087662]
[1725353389886,0.187926,58891.0,58889.0,0.297927]
[1725353390491,0.187926,58891.0,58889.0,0.36576249]
[1725353390697,0.187926,58891.0,58889.0,0.297927]
[1725353390881,0.187926,58891.0,58889.0,0.36576249]
[1725353391083,0.189926,58891.0,58889.0,0.297927]
[1725353391592,0.352,58891.0,58889.0,0.001]
[1725353391900,0.067927,58889.0,58888.0,0.001]
[1725353392084,0.247927,58889.0,58888.0,0.001]
[1725353392283,1.357367,58889.0,58888.0,0.001]
[1725353392486,0.067931,58886.0,58885.0,0.3608]
[1725353392698,0.707411,58886.0,58885.0,0.3608]
[1725353394392,0.197931,58886.0,58885.0,0.3608]
[1725353394586,0.200931,58886.0,58885.0,0.3618]
[1725353394894,0.710411,58886.0,58885.0,0.3618]
[1725353395190,0.711411,58886.0,58885.0,0.3628]
[1725353396992,0.431931,58886.0,58885.0,0.3628]
[1725353398993,0.431931,58886.0,58885.0,0.002]
[1725353401896,0.941411,58886.0,58885.0,0.002]
[1725353405601,1.009342,58886.0,58885.0,0.002]
[1725353406097,0.359862,58886.0,58885.0,0.002]
[1725353406298,0.869342,58886.0,58885.0,0.002]
[1725353407202,0.359862,58886.0,58885.0,0.002]
[1725353408504,0.06794,58878.0,58877.0,0.0002547]
[1725353408803,0.28794,58878.0,58877.0,0.0002547]
[1725353409708,0.28894,58878.0,58877.0,0.0012547]
[1725353409901,0.29194,58878.0,58877.0,0.0022547]
[1725353410293,0.29194,58878.0,58877.0,0.0701957]
[1725353411694,0.29194,58878.0,58877.0,0.0022547]
[1725353417613,0.20194,58878.0,58877.0,0.0022547]
[1725353419306,1.3794,58878.0,58877.0,0.0022547]
[1725353419503,1.4094,58878.0,58877.0,0.0022547]
[1725353419804,1.52247054,58878.0,58877.0,0.0022547]
[1725353420606,1.52247054,58878.0,58864.0,0.004]
[1725353420607,0.067954,58866.0,58864.0,0.004]
[1725353420807,0.33009647,58866.0,58862.0,0.067958]
[1725353421809,0.33209647,58866.0,58865.0,0.3618]
[1725353422012,0.33609647,58866.0,58865.0,0.3628]